[Event "Live Chess"]
[Site "Chess.com"]
[Date "2024.06.02"]
[Round "-"]
[White "JohanKjeldahl"]
[Black "raclement"]
[Result "0-1"]
[WhiteElo "1791"]
[BlackElo "1733"]
[TimeControl "300"]
[EndTime "6:12:29 PDT"]
[Termination "raclement won by resignation"]

1. e4 {[%clk 0:04:57.9]} 1... c5 {[%clk 0:04:58.4]} 2. Nf3 {[%clk 0:04:55.6]}
2... g6 {[%clk 0:04:54]} 3. d4 {[%clk 0:04:53.5]} 3... cxd4 {[%clk 0:04:52.5]}
4. Nxd4 {[%clk 0:04:50.6]} 4... Bg7 {[%clk 0:04:50.3]} 5. Nc3 {[%clk 0:04:49.3]}
5... Nc6 {[%clk 0:04:49.1]} 6. Be3 {[%clk 0:04:48.2]} 6... Nf6 {[%clk
0:04:47.2]} 7. f3 {[%clk 0:04:46.6]} 7... O-O {[%clk 0:04:45.9]} 8. Qd2 {[%clk
0:04:45.3]} 8... d5 {[%clk 0:04:44.8]} 9. Nxc6 {[%clk 0:04:38.4]} 9... bxc6
{[%clk 0:04:43.3]} 10. O-O-O {[%clk 0:04:37.9]} 10... Bb7 {[%clk 0:04:33.2]} 11.
e5 {[%clk 0:04:34.2]} 11... Nd7 {[%clk 0:04:30.7]} 12. f4 {[%clk 0:04:33.1]}
12... e6 {[%clk 0:04:27.9]} 13. g4 {[%clk 0:04:18.6]} 13... c5 {[%clk
0:04:26.7]} 14. Bg2 {[%clk 0:03:54.9]} 14... Rb8 {[%clk 0:04:24.5]} 15. Nb5
{[%clk 0:03:45.6]} 15... d4 {[%clk 0:04:18.5]} 16. Bxb7 {[%clk 0:03:43.2]} 16...
Rxb7 {[%clk 0:04:17]} 17. Nd6 {[%clk 0:03:40.5]} 17... Rb6 {[%clk 0:03:39.1]}
18. Bf2 {[%clk 0:03:34.7]} 18... Rxd6 {[%clk 0:03:37.6]} 19. exd6 {[%clk
0:03:32.9]} 19... Nb6 {[%clk 0:03:36.1]} 20. f5 {[%clk 0:03:26.4]} 20... exf5
{[%clk 0:03:33.9]} 21. gxf5 {[%clk 0:03:22.6]} 21... Qxd6 {[%clk 0:03:32.6]} 22.
Bg3 {[%clk 0:03:14.8]} 22... Qd5 {[%clk 0:03:23.4]} 23. fxg6 {[%clk 0:03:12.6]}
23... fxg6 {[%clk 0:03:18.6]} 24. Rhf1 {[%clk 0:03:09.3]} 24... Nc4 {[%clk
0:03:11.4]} 25. Rxf8+ {[%clk 0:03:05.3]} 25... Bxf8 {[%clk 0:03:10.1]} 26. Qf4
{[%clk 0:02:43.1]} 26... Qf7 {[%clk 0:02:59.1]} 27. b3 {[%clk 0:02:39.4]} 27...
Qxf4+ {[%clk 0:02:54.5]} 28. Bxf4 {[%clk 0:02:38.3]} 28... Ne3 {[%clk
0:02:45.1]} 29. Bxe3 {[%clk 0:02:35.9]} 29... dxe3 {[%clk 0:02:43.9]} 30. Re1
{[%clk 0:02:34.8]} 30... Bh6 {[%clk 0:02:42.4]} 31. Kd1 {[%clk 0:02:32.9]} 31...
Kf7 {[%clk 0:02:41.4]} 32. Ke2 {[%clk 0:02:32]} 32... Ke6 {[%clk 0:02:40.6]} 33.
Kd3 {[%clk 0:02:28.6]} 33... Kd5 {[%clk 0:02:39.1]} 34. c4+ {[%clk 0:02:26.4]}
34... Ke5 {[%clk 0:02:35.5]} 35. Rf1 {[%clk 0:02:25.1]} 35... Bf4 {[%clk
0:02:32.6]} 36. h3 {[%clk 0:02:21.8]} 36... g5 {[%clk 0:02:31.5]} 37. a3 {[%clk
0:02:10.9]} 37... a5 {[%clk 0:02:30]} 38. Rb1 {[%clk 0:02:04.1]} 38... h5 {[%clk
0:02:23.5]} 39. b4 {[%clk 0:02:03]} 39... axb4 {[%clk 0:02:21.3]} 40. axb4
{[%clk 0:02:02.2]} 40... cxb4 {[%clk 0:02:19.6]} 41. Rxb4 {[%clk 0:02:01.3]}
41... g4 {[%clk 0:02:18.3]} 42. Rb5+ {[%clk 0:02:00.4]} 42... Kf6 {[%clk
0:02:16.3]} 43. hxg4 {[%clk 0:01:51.7]} 43... hxg4 {[%clk 0:02:15.1]} 44. Ke4
{[%clk 0:01:50.3]} 44... e2 {[%clk 0:02:11.4]} 45. Rb1 {[%clk 0:01:48.1]} 45...
Bg3 {[%clk 0:02:08.8]} 46. c5 {[%clk 0:01:32.4]} 46... e1=Q+ {[%clk 0:02:06.5]}
47. Rxe1 {[%clk 0:01:31]} 47... Bxe1 {[%clk 0:02:05.4]} 48. Kf4 {[%clk
0:01:30.2]} 48... g3 {[%clk 0:02:03.7]} 49. Kf3 {[%clk 0:01:28.7]} 49... Ke6
{[%clk 0:02:00.8]} 50. c6 {[%clk 0:01:25.8]} 50... Kd6 {[%clk 0:01:59.7]} 51. c7
{[%clk 0:01:22.6]} 51... Kxc7 {[%clk 0:01:58.7]} 52. Kg2 {[%clk 0:01:20.2]}
52... Kd6 {[%clk 0:01:57.5]} 53. Kf1 {[%clk 0:01:19.4]} 53... Bf2 {[%clk
0:01:56.1]} 54. Kg2 {[%clk 0:01:18.6]} 54... Ke5 {[%clk 0:01:55.2]} 55. Kh1
{[%clk 0:01:16.5]} 55... Kf4 {[%clk 0:01:53.7]} 56. Kg2 {[%clk 0:01:15.2]} 56...
Be1 {[%clk 0:01:52.2]} 57. Kf1 {[%clk 0:01:13.5]} 57... Bb4 {[%clk 0:01:50.4]}
58. Kg2 {[%clk 0:01:12.3]} 58... Bc5 {[%clk 0:01:48.7]} 59. Kf1 {[%clk
0:01:10.1]} 59... Kf3 {[%clk 0:01:47.9]} 60. Ke1 {[%clk 0:00:57.9]} 60... g2
{[%clk 0:01:46.6]} 0-1

[Event "Live Chess"]
[Site "Chess.com"]
[Date "2024.06.02"]
[Round "-"]
[White "upoe610"]
[Black "davigator"]
[Result "1/2-1/2"]
[WhiteElo "2141"]
[BlackElo "2354"]
[TimeControl "300"]
[EndTime "6:12:30 PDT"]
[Termination "Game drawn by agreement"]

1. c4 {[%clk 0:04:57.8]} 1... e5 {[%clk 0:04:57.7]} 2. g3 {[%clk 0:04:55.4]}
2... Nf6 {[%clk 0:04:55.2]} 3. Bg2 {[%clk 0:04:54.2]} 3... d5 {[%clk 0:04:53.8]}
4. cxd5 {[%clk 0:04:53]} 4... Nxd5 {[%clk 0:04:53.2]} 5. Nf3 {[%clk 0:04:52.7]}
5... Nc6 {[%clk 0:04:51.3]} 6. O-O {[%clk 0:04:52.1]} 6... Be7 {[%clk
0:04:49.6]} 7. Nc3 {[%clk 0:04:48.2]} 7... Nf6 {[%clk 0:04:40.7]} 8. b3 {[%clk
0:04:45.9]} 8... O-O {[%clk 0:04:39.4]} 9. Bb2 {[%clk 0:04:43.8]} 9... Re8
{[%clk 0:04:38.3]} 10. Rc1 {[%clk 0:04:43.5]} 10... Bg4 {[%clk 0:04:35.1]} 11.
Nb5 {[%clk 0:04:36.4]} 11... Bb4 {[%clk 0:04:31]} 12. a3 {[%clk 0:04:33.2]}
12... Ba5 {[%clk 0:04:29.6]} 13. b4 {[%clk 0:04:32]} 13... Bb6 {[%clk 0:04:28]}
14. h3 {[%clk 0:04:27.1]} 14... Bh5 {[%clk 0:04:26.1]} 15. g4 {[%clk 0:04:26.1]}
15... Bg6 {[%clk 0:04:25.3]} 16. Nc3 {[%clk 0:04:17.5]} 16... Qd7 {[%clk
0:04:20.7]} 17. Na4 {[%clk 0:04:14.8]} 17... Rad8 {[%clk 0:04:18.8]} 18. d3
{[%clk 0:04:12.2]} 18... Nd5 {[%clk 0:04:12.7]} 19. Nc5 {[%clk 0:04:05.8]} 19...
Bxc5 {[%clk 0:04:04.2]} 20. Rxc5 {[%clk 0:04:05.7]} 20... Nf4 {[%clk 0:04:00.2]}
21. Nxe5 {[%clk 0:03:55.2]} 21... Nxe5 {[%clk 0:03:54.7]} 22. Bxe5 {[%clk
0:03:53.9]} 22... Nxg2 {[%clk 0:03:53.6]} 23. Kxg2 {[%clk 0:03:52.8]} 23... c6
{[%clk 0:03:50.8]} 24. Bg3 {[%clk 0:03:49.8]} 24... b6 {[%clk 0:03:43.8]} 25.
Rc1 {[%clk 0:03:47]} 25... Qd5+ {[%clk 0:03:42]} 26. f3 {[%clk 0:03:45.6]} 26...
f5 {[%clk 0:03:27.5]} 27. Qc2 {[%clk 0:03:39.2]} 27... Re6 {[%clk 0:03:22.8]}
28. Rf2 {[%clk 0:03:37.8]} 28... h5 {[%clk 0:03:17.3]} 29. Qc4 {[%clk
0:03:34.4]} 29... fxg4 {[%clk 0:03:13.3]} 30. hxg4 {[%clk 0:03:33.2]} 30... hxg4
{[%clk 0:03:11.7]} 31. Qxd5 {[%clk 0:03:30.6]} 31... Rxd5 {[%clk 0:03:10.6]} 32.
fxg4 {[%clk 0:03:29.6]} 32... a5 {[%clk 0:03:02.8]} 33. bxa5 {[%clk 0:03:27.7]}
33... Rxa5 {[%clk 0:03:01.5]} 34. Rcf1 {[%clk 0:03:25.4]} 34... Re8 {[%clk
0:02:54]} 35. Rc1 {[%clk 0:03:21.7]} 35... Re6 {[%clk 0:02:51.8]} 36. Rcf1
{[%clk 0:03:20.1]} 36... Ra8 {[%clk 0:02:43.7]} 37. Rb1 {[%clk 0:03:17.1]} 37...
b5 {[%clk 0:02:42.5]} 38. e4 {[%clk 0:03:14.2]} 38... Rxa3 {[%clk 0:02:39]} 39.
Rbf1 {[%clk 0:03:06.3]} 39... Ra8 {[%clk 0:02:37.6]} 40. Bf4 {[%clk 0:03:02.9]}
40... Rd8 {[%clk 0:02:36.1]} 41. Rf3 {[%clk 0:03:01.2]} 41... Ra8 {[%clk
0:02:26.6]} 42. Kg3 {[%clk 0:02:58.5]} 42... Rc8 {[%clk 0:02:17]} 43. Bd2 {[%clk
0:02:54.6]} 43... c5 {[%clk 0:02:15.8]} 44. Rc1 {[%clk 0:02:36.1]} 44... c4
{[%clk 0:02:11.9]} 45. Bb4 {[%clk 0:02:35.1]} 45... Rec6 {[%clk 0:02:05.7]} 46.
d4 {[%clk 0:02:25.3]} 46... Bxe4 {[%clk 0:02:03.9]} 47. Re3 {[%clk 0:02:24.4]}
47... Re8 {[%clk 0:01:54.7]} 48. Rce1 {[%clk 0:02:21]} 48... Rce6 {[%clk
0:01:53.1]} 49. Kf4 {[%clk 0:02:19.9]} 49... Bd5 {[%clk 0:01:52.2]} 50. Rxe6
{[%clk 0:02:13.4]} 50... Rxe6 {[%clk 0:01:47]} 51. Rxe6 {[%clk 0:02:12.3]} 51...
Bxe6 {[%clk 0:01:46.6]} 52. g5 {[%clk 0:02:12.2]} 52... Kf7 {[%clk 0:01:44.3]}
53. Ke5 {[%clk 0:02:11.6]} 53... Bd7 {[%clk 0:01:41.1]} 54. Kd6 {[%clk
0:02:07.4]} 54... Be8 {[%clk 0:01:39.9]} 55. Ke5 {[%clk 0:02:06.7]} 55... Kg6
{[%clk 0:01:38.5]} 56. Kf4 {[%clk 0:02:06]} 56... Bf7 {[%clk 0:01:35.1]} 57. Bd2
{[%clk 0:02:01.5]} 57... Bd5 {[%clk 0:01:30.1]} 58. Ke5 {[%clk 0:02:00.6]} 58...
Bf7 {[%clk 0:01:26.8]} 59. d5 {[%clk 0:01:59.9]} 59... Be8 {[%clk 0:01:25.2]}
60. Kd6 {[%clk 0:01:58]} 60... Kf5 {[%clk 0:01:22.6]} 61. Ke7 {[%clk 0:01:56.6]}
61... Ke5 {[%clk 0:01:14.1]} 62. d6 {[%clk 0:01:54.2]} 62... Bc6 {[%clk
0:01:12.8]} 63. Bc3+ {[%clk 0:01:50.1]} 63... Kf5 {[%clk 0:01:10.4]} 64. Bf6
{[%clk 0:01:44.8]} 64... c3 {[%clk 0:01:05.4]} 65. Bxc3 {[%clk 0:01:42.6]} 65...
Kxg5 {[%clk 0:01:04.5]} 66. Bxg7 {[%clk 0:01:41.7]} 66... b4 {[%clk 0:01:04]}
67. Kd8 {[%clk 0:01:38.9]} 67... b3 {[%clk 0:01:02.3]} 68. Kc7 {[%clk
0:01:37.4]} 68... Ba4 {[%clk 0:01:01.2]} 69. Bb2 {[%clk 0:01:33.7]} 69... Kf5
{[%clk 0:00:54.1]} 1/2-1/2

[Event "Live Chess"]
[Site "Chess.com"]
[Date "2024.06.02"]
[Round "-"]
[White "r0ad_t0-gm"]
[Black "FlyingChessKestrel13"]
[Result "1-0"]
[WhiteElo "2305"]
[BlackElo "2077"]
[TimeControl "300"]
[EndTime "6:12:39 PDT"]
[Termination "r0ad_t0-gm won by resignation"]

1. Nf3 {[%clk 0:04:58.9]} 1... d6 {[%clk 0:04:58.8]} 2. d4 {[%clk 0:04:57.5]}
2... g6 {[%clk 0:04:57.4]} 3. e4 {[%clk 0:04:55.2]} 3... Bg7 {[%clk 0:04:56.7]}
4. c3 {[%clk 0:04:54.1]} 4... Nf6 {[%clk 0:04:56.2]} 5. Bd3 {[%clk 0:04:53.4]}
5... O-O {[%clk 0:04:55.6]} 6. O-O {[%clk 0:04:53]} 6... Nbd7 {[%clk 0:04:54.3]}
7. Re1 {[%clk 0:04:51.7]} 7... e5 {[%clk 0:04:53.6]} 8. h3 {[%clk 0:04:50.9]}
8... c6 {[%clk 0:04:52.3]} 9. Nbd2 {[%clk 0:04:45.7]} 9... Qc7 {[%clk
0:04:51.6]} 10. Nf1 {[%clk 0:04:44.2]} 10... Re8 {[%clk 0:04:50.9]} 11. Ng3
{[%clk 0:04:43.1]} 11... Nf8 {[%clk 0:04:49.4]} 12. Be3 {[%clk 0:04:41.2]} 12...
Ne6 {[%clk 0:04:48.3]} 13. a4 {[%clk 0:04:40.6]} 13... Nf4 {[%clk 0:04:45.9]}
14. Bxf4 {[%clk 0:04:34.5]} 14... exf4 {[%clk 0:04:44.8]} 15. Ne2 {[%clk
0:04:33.6]} 15... Nh5 {[%clk 0:04:43.7]} 16. Qd2 {[%clk 0:04:24.2]} 16... d5
{[%clk 0:04:41.6]} 17. e5 {[%clk 0:04:22.3]} 17... Bh6 {[%clk 0:04:40.7]} 18. g4
{[%clk 0:04:16]} 18... Ng7 {[%clk 0:04:31.6]} 19. g5 {[%clk 0:04:10.2]} 19...
Bxh3 {[%clk 0:04:26.4]} 20. gxh6 {[%clk 0:04:09]} 20... Qd7 {[%clk 0:04:24]} 21.
Qxf4 {[%clk 0:04:06.9]} 21... Nh5 {[%clk 0:04:22]} 22. Qg5 {[%clk 0:03:55.8]}
22... Kh8 {[%clk 0:04:15.7]} 23. Nf4 {[%clk 0:03:50.2]} 23... f6 {[%clk
0:04:09.9]} 24. exf6 {[%clk 0:03:34.6]} 24... Nxf4 {[%clk 0:04:08.1]} 25. Qxf4
{[%clk 0:03:31.7]} 25... Rf8 {[%clk 0:03:54.6]} 26. Ne5 {[%clk 0:03:26.8]} 26...
Qe6 {[%clk 0:03:36.8]} 27. Nxg6+ {[%clk 0:03:25.1]} 27... hxg6 {[%clk
0:03:35.8]} 28. Rxe6 {[%clk 0:03:24.4]} 28... Bxe6 {[%clk 0:03:35.2]} 29. Bxg6
{[%clk 0:03:22.3]} 29... Rg8 {[%clk 0:03:33.8]} 30. Qg3 {[%clk 0:03:07.4]} 30...
Raf8 {[%clk 0:03:18.8]} 31. f7 {[%clk 0:03:05.6]} 31... Bxf7 {[%clk 0:03:16.8]}
32. Qe5+ {[%clk 0:03:04.3]} 1-0

[Event "Live Chess"]
[Site "Chess.com"]
[Date "2024.06.02"]
[Round "-"]
[White "booktrunk"]
[Black "Dhaydon19"]
[Result "0-1"]
[WhiteElo "1494"]
[BlackElo "2660"]
[TimeControl "300"]
[EndTime "6:13:19 PDT"]
[Termination "Dhaydon19 won by resignation"]

1. d4 {[%clk 0:04:52.5]} 1... c6 {[%clk 0:04:59.4]} 2. Nc3 {[%clk 0:04:50.4]}
2... d5 {[%clk 0:04:59]} 3. e4 {[%clk 0:04:49.4]} 3... dxe4 {[%clk 0:04:58.2]}
4. Nxe4 {[%clk 0:04:47.7]} 4... Nf6 {[%clk 0:04:57.6]} 5. Nxf6+ {[%clk
0:04:45.6]} 5... exf6 {[%clk 0:04:51.6]} 6. Qe2+ {[%clk 0:04:43.6]} 6... Be6
{[%clk 0:04:49.7]} 7. Bf4 {[%clk 0:04:40.4]} 7... Be7 {[%clk 0:04:47.7]} 8. b3
{[%clk 0:04:39.3]} 8... Qxd4 {[%clk 0:04:42.8]} 9. Rd1 {[%clk 0:04:33.8]} 9...
Qxf4 {[%clk 0:04:38.4]} 10. h3 {[%clk 0:04:28.4]} 10... Nd7 {[%clk 0:04:36.9]}
11. Qd3 {[%clk 0:04:27]} 11... Ne5 {[%clk 0:04:34.9]} 12. Qc3 {[%clk 0:04:24.1]}
12... Bb4 {[%clk 0:04:33.7]} 13. Qxb4 {[%clk 0:04:20.5]} 0-1

[Event "Live Chess"]
[Site "Chess.com"]
[Date "2024.06.02"]
[Round "-"]
[White "Grace6363"]
[Black "StoreySniper"]
[Result "0-1"]
[WhiteElo "1123"]
[BlackElo "2500"]
[TimeControl "300"]
[EndTime "6:13:20 PDT"]
[Termination "StoreySniper won by checkmate"]

1. d4 {[%clk 0:04:56.7]} 1... g6 {[%clk 0:04:58.9]} 2. c4 {[%clk 0:04:54.1]}
2... Bg7 {[%clk 0:04:58.5]} 3. Nf3 {[%clk 0:04:53.6]} 3... c5 {[%clk 0:04:58.1]}
4. d5 {[%clk 0:04:50.7]} 4... b5 {[%clk 0:04:57.4]} 5. e3 {[%clk 0:04:49.4]}
5... bxc4 {[%clk 0:04:55.8]} 6. Bxc4 {[%clk 0:04:48.3]} 6... d6 {[%clk
0:04:55.5]} 7. Nc3 {[%clk 0:04:45]} 7... Nf6 {[%clk 0:04:55.1]} 8. O-O {[%clk
0:04:42.4]} 8... O-O {[%clk 0:04:54.6]} 9. Re1 {[%clk 0:04:37.1]} 9... Ba6
{[%clk 0:04:52.8]} 10. Qb3 {[%clk 0:04:32.8]} 10... Bxc4 {[%clk 0:04:50.1]} 11.
Qxc4 {[%clk 0:04:32]} 11... Nbd7 {[%clk 0:04:49.9]} 12. e4 {[%clk 0:04:28.6]}
12... Ng4 {[%clk 0:04:33.8]} 13. Bf4 {[%clk 0:04:19.4]} 13... Rb8 {[%clk
0:04:26.2]} 14. b3 {[%clk 0:04:15.4]} 14... Qa5 {[%clk 0:04:19.7]} 15. Rac1
{[%clk 0:04:08.7]} 15... Rb4 {[%clk 0:04:01.3]} 16. Qd3 {[%clk 0:04:04.3]} 16...
Rfb8 {[%clk 0:03:43.1]} 17. Rb1 {[%clk 0:03:41.1]} 17... Bxc3 {[%clk 0:03:23.1]}
18. Qxc3 {[%clk 0:03:21.2]} 18... Qxa2 {[%clk 0:03:20.5]} 19. Nd2 {[%clk
0:02:44.5]} 19... Qa6 {[%clk 0:03:04.8]} 20. Nc4 {[%clk 0:02:27.8]} 20... Qb5
{[%clk 0:02:50]} 21. Na3 {[%clk 0:02:05.6]} 21... Qb7 {[%clk 0:02:41.1]} 22. h3
{[%clk 0:01:38.5]} 22... Ngf6 {[%clk 0:02:32.5]} 23. Nc4 {[%clk 0:01:27.8]}
23... Rxb3 {[%clk 0:02:27.6]} 24. Rxb3 {[%clk 0:01:26.2]} 24... Qxb3 {[%clk
0:02:27.5]} 25. Qxb3 {[%clk 0:01:22]} 25... Rxb3 {[%clk 0:02:26]} 26. e5 {[%clk
0:01:12.1]} 26... dxe5 {[%clk 0:02:17.6]} 27. Nxe5 {[%clk 0:01:07.2]} 27... Nxe5
{[%clk 0:02:14.9]} 28. Rxe5 {[%clk 0:01:04.2]} 28... Kf8 {[%clk 0:01:51.4]} 29.
Bg5 {[%clk 0:00:59]} 29... Rd3 {[%clk 0:01:39.9]} 30. Bxf6 {[%clk 0:00:55.6]}
30... exf6 {[%clk 0:01:38.5]} 31. Re4 {[%clk 0:00:46.1]} 31... Rd1+ {[%clk
0:01:37.2]} 32. Kh2 {[%clk 0:00:37]} 32... Rxd5 {[%clk 0:01:36.2]} 33. Rc4
{[%clk 0:00:36.3]} 33... Ke7 {[%clk 0:01:34.4]} 34. f4 {[%clk 0:00:35.5]} 34...
Kd6 {[%clk 0:01:33.5]} 35. Kg3 {[%clk 0:00:33.3]} 35... Rd3+ {[%clk 0:01:31.2]}
36. Kf2 {[%clk 0:00:31.6]} 36... Rd4 {[%clk 0:01:30.2]} 37. Rc3 {[%clk
0:00:29.6]} 37... Rxf4+ {[%clk 0:01:29.1]} 38. Ke3 {[%clk 0:00:28]} 38... Rd4
{[%clk 0:01:27.4]} 39. Ra3 {[%clk 0:00:26.1]} 39... f5 {[%clk 0:01:20.6]} 40.
Rxa7 {[%clk 0:00:25.2]} 40... f4+ {[%clk 0:01:19.5]} 41. Ke2 {[%clk 0:00:22.1]}
41... Ke6 {[%clk 0:01:15.2]} 42. Ra5 {[%clk 0:00:19.4]} 42... Rd5 {[%clk
0:01:14.2]} 43. Ra4 {[%clk 0:00:16.6]} 43... g5 {[%clk 0:01:13.1]} 44. Re4+
{[%clk 0:00:15.8]} 44... Re5 {[%clk 0:01:10.7]} 45. Rxe5+ {[%clk 0:00:13.2]}
45... Kxe5 {[%clk 0:01:09.9]} 46. Kd3 {[%clk 0:00:12.7]} 46... Kd5 {[%clk
0:01:06.4]} 47. Kc3 {[%clk 0:00:12.1]} 47... c4 {[%clk 0:01:05.5]} 48. Kd2
{[%clk 0:00:11.1]} 48... Kd4 {[%clk 0:01:05]} 49. Kc2 {[%clk 0:00:10.3]} 49...
c3 {[%clk 0:01:04.5]} 50. Kc1 {[%clk 0:00:09.6]} 50... Kd3 {[%clk 0:01:04.1]}
51. Kd1 {[%clk 0:00:09.1]} 51... c2+ {[%clk 0:01:03.5]} 52. Kc1 {[%clk
0:00:08.8]} 52... Kc3 {[%clk 0:01:02.7]} 53. h4 {[%clk 0:00:07.2]} 53... g4
{[%clk 0:01:00.9]} 54. g3 {[%clk 0:00:06.3]} 54... fxg3 {[%clk 0:00:57.2]} 55.
h5 {[%clk 0:00:05.8]} 55... g2 {[%clk 0:00:56.3]} 56. h6 {[%clk 0:00:05.6]}
56... g1=Q# {[%clk 0:00:55.7]} 0-1

[Event "Live Chess"]
[Site "Chess.com"]
[Date "2024.06.02"]
[Round "-"]
[White "LL220284LL"]
[Black "vincents82"]
[Result "1/2-1/2"]
[WhiteElo "2490"]
[BlackElo "1996"]
[TimeControl "300"]
[EndTime "6:13:31 PDT"]
[Termination "Game drawn by agreement"]

1. b3 {[%clk 0:04:50.3]} 1... d5 {[%clk 0:04:58.7]} 2. Bb2 {[%clk 0:04:49.6]}
2... e6 {[%clk 0:04:58.3]} 3. Nf3 {[%clk 0:04:47.2]} 3... Nf6 {[%clk 0:04:58]}
4. e3 {[%clk 0:04:46.2]} 4... Be7 {[%clk 0:04:57.6]} 5. Be2 {[%clk 0:04:45.3]}
5... O-O {[%clk 0:04:57.2]} 6. O-O {[%clk 0:04:44.9]} 6... c5 {[%clk 0:04:56.6]}
7. d4 {[%clk 0:04:43.3]} 7... b6 {[%clk 0:04:56.2]} 8. Nbd2 {[%clk 0:04:41.5]}
8... Bb7 {[%clk 0:04:55.7]} 9. c4 {[%clk 0:04:40.1]} 9... Nbd7 {[%clk
0:04:55.2]} 10. cxd5 {[%clk 0:04:38.3]} 10... exd5 {[%clk 0:04:54.1]} 11. Rc1
{[%clk 0:04:36.7]} 11... Rc8 {[%clk 0:04:53]} 12. dxc5 {[%clk 0:04:31.3]} 12...
Nxc5 {[%clk 0:04:50.3]} 13. Nd4 {[%clk 0:04:29.4]} 13... Nce4 {[%clk 0:04:49]}
14. Nxe4 {[%clk 0:04:28.6]} 14... Nxe4 {[%clk 0:04:47.6]} 15. Bd3 {[%clk
0:04:26.5]} 15... Rxc1 {[%clk 0:04:45.2]} 16. Qxc1 {[%clk 0:04:24.3]} 16... Qc8
{[%clk 0:04:44.3]} 17. Qa1 {[%clk 0:04:20.8]} 17... Bf6 {[%clk 0:04:38.7]} 18.
Rc1 {[%clk 0:04:17.2]} 18... Qd7 {[%clk 0:04:35.6]} 19. Qb1 {[%clk 0:04:07.3]}
19... Rc8 {[%clk 0:04:32.3]} 20. Rxc8+ {[%clk 0:04:04.3]} 20... Qxc8 {[%clk
0:04:31.1]} 21. h3 {[%clk 0:04:01]} 21... Qc5 {[%clk 0:04:24.3]} 22. Qd1 {[%clk
0:03:54.1]} 22... Nc3 {[%clk 0:04:14.6]} 23. Qa1 {[%clk 0:03:31.1]} 23... Ne4
{[%clk 0:04:06.5]} 24. Qc1 {[%clk 0:03:28.6]} 24... Qxc1+ {[%clk 0:04:02.9]} 25.
Bxc1 {[%clk 0:03:28.5]} 25... Kf8 {[%clk 0:03:54.4]} 26. Kf1 {[%clk 0:03:26.3]}
26... Ke7 {[%clk 0:03:50.3]} 27. Ba3+ {[%clk 0:03:21.3]} 27... Kd7 {[%clk
0:03:48.1]} 28. Bb5+ {[%clk 0:03:19.4]} 28... Kc7 {[%clk 0:03:41.7]} 29. Be8
{[%clk 0:03:17.9]} 29... Nd6 {[%clk 0:03:27.3]} 30. Bxd6+ {[%clk 0:03:15.2]}
30... Kxd6 {[%clk 0:03:26.4]} 31. Bxf7 {[%clk 0:03:14.9]} 31... Kc5 {[%clk
0:03:20.5]} 32. Nc2 {[%clk 0:03:07.8]} 32... Ba6+ {[%clk 0:03:10.3]} 33. Ke1
{[%clk 0:03:06.8]} 33... Bd3 {[%clk 0:03:00.6]} 34. Kd2 {[%clk 0:03:05.3]} 34...
Bxc2 {[%clk 0:02:58.4]} 35. Kxc2 {[%clk 0:03:05.2]} 35... a5 {[%clk 0:02:52.2]}
36. Kd3 {[%clk 0:03:02.4]} 36... h6 {[%clk 0:02:44.6]} 37. e4 {[%clk 0:02:57.4]}
37... dxe4+ {[%clk 0:02:43.4]} 38. Kxe4 {[%clk 0:02:57.3]} 38... b5 {[%clk
0:02:39.4]} 39. a4 {[%clk 0:02:54.7]} 39... bxa4 {[%clk 0:02:36.2]} 40. bxa4
{[%clk 0:02:54.6]} 40... Kd6 {[%clk 0:02:33.8]} 41. f4 {[%clk 0:02:52]} 41...
Bc3 {[%clk 0:02:31.5]} 42. Kf5 {[%clk 0:02:50.1]} 42... Ke7 {[%clk 0:02:30.4]}
43. Bc4 {[%clk 0:02:49.1]} 43... Bd2 {[%clk 0:02:24.7]} 44. g4 {[%clk
0:02:47.1]} 44... Bc1 {[%clk 0:02:21.5]} 45. Ke4 {[%clk 0:02:46.3]} 45... Kf6
{[%clk 0:02:19.5]} 46. h4 {[%clk 0:02:45.1]} 46... g5 {[%clk 0:02:00.1]} 47.
fxg5+ {[%clk 0:02:43.5]} 47... hxg5 {[%clk 0:01:59.5]} 48. h5 {[%clk 0:02:43]}
48... Kg7 {[%clk 0:01:50.8]} 49. Kf5 {[%clk 0:02:41.7]} 49... Kh6 {[%clk
0:01:49.7]} 50. Kf6 {[%clk 0:02:39.8]} 50... Bd2 {[%clk 0:01:48.6]} 51. Bd3
{[%clk 0:02:38.3]} 51... Be1 {[%clk 0:01:47.9]} 52. Bf5 {[%clk 0:02:37.6]} 52...
Bd2 {[%clk 0:01:47.1]} 53. Ke7 {[%clk 0:02:34.8]} 1/2-1/2

[Event "Live Chess"]
[Site "Chess.com"]
[Date "2024.06.02"]
[Round "-"]
[White "agamilewska"]
[Black "MagnersCarlsberg2870"]
[Result "1/2-1/2"]
[WhiteElo "1780"]
[BlackElo "1739"]
[TimeControl "300"]
[EndTime "6:13:49 PDT"]
[Termination "Game drawn by agreement"]

1. e4 {[%clk 0:04:57.9]} 1... e5 {[%clk 0:04:58.4]} 2. c3 {[%clk 0:04:57]} 2...
Nf6 {[%clk 0:04:55.9]} 3. d4 {[%clk 0:04:55.4]} 3... c5 {[%clk 0:04:52.9]} 4.
dxe5 {[%clk 0:04:49.4]} 4... Nxe4 {[%clk 0:04:51.7]} 5. Bc4 {[%clk 0:04:40.3]}
5... d5 {[%clk 0:04:49.2]} 6. Bxd5 {[%clk 0:04:33.2]} 6... Ng5 {[%clk
0:04:35.2]} 7. Bxg5 {[%clk 0:04:30.4]} 7... Qxg5 {[%clk 0:04:33.5]} 8. g3 {[%clk
0:03:19.2]} 8... Qxe5+ {[%clk 0:04:31.1]} 9. Qe2 {[%clk 0:03:13.4]} 9... Bd6
{[%clk 0:04:23.1]} 10. Qxe5+ {[%clk 0:03:10.1]} 10... Bxe5 {[%clk 0:04:21.9]}
11. Nf3 {[%clk 0:03:09.3]} 11... Bf6 {[%clk 0:04:18.6]} 12. O-O {[%clk 0:03:05]}
12... O-O {[%clk 0:04:16.5]} 13. Nbd2 {[%clk 0:03:03.3]} 13... Nc6 {[%clk
0:04:15.5]} 14. Ne4 {[%clk 0:03:00.9]} 14... Be7 {[%clk 0:04:02.2]} 15. Bxc6
{[%clk 0:02:46.8]} 15... bxc6 {[%clk 0:04:00.6]} 16. Rfe1 {[%clk 0:02:43.8]}
16... Bg4 {[%clk 0:03:56.4]} 17. Ne5 {[%clk 0:02:42.6]} 17... Bf5 {[%clk
0:03:37.3]} 18. Nxc6 {[%clk 0:02:39.7]} 18... Rfe8 {[%clk 0:03:27.5]} 19. Nxe7+
{[%clk 0:02:34.1]} 19... Rxe7 {[%clk 0:03:19.8]} 20. Nxc5 {[%clk 0:02:33.5]}
20... Rxe1+ {[%clk 0:03:16.3]} 21. Rxe1 {[%clk 0:02:32.3]} 21... g6 {[%clk
0:03:10.8]} 22. f4 {[%clk 0:02:30.3]} 22... Rc8 {[%clk 0:03:08.6]} 23. b4 {[%clk
0:02:27.8]} 23... h5 {[%clk 0:03:06.3]} 24. Kf2 {[%clk 0:02:26.5]} 24... Rd8
{[%clk 0:03:04.1]} 25. Re2 {[%clk 0:02:21]} 25... Rd1 {[%clk 0:02:58.5]} 26. Ne4
{[%clk 0:02:11.8]} 26... Rc1 {[%clk 0:02:49.3]} 27. Nf6+ {[%clk 0:02:04.1]}
27... Kg7 {[%clk 0:02:45.5]} 28. Nd5 {[%clk 0:02:03.7]} 28... Bd3 {[%clk
0:02:41.5]} 29. Rd2 {[%clk 0:02:00.9]} 29... Bc4 {[%clk 0:02:37.2]} 30. Ne3
{[%clk 0:01:46.4]} 30... Rxc3 {[%clk 0:02:34.1]} 31. Nxc4 {[%clk 0:01:45.7]}
31... Rxc4 {[%clk 0:02:33.4]} 32. Rd7 {[%clk 0:01:39.1]} 32... Rxb4 {[%clk
0:02:30.5]} 33. Rxa7 {[%clk 0:01:38]} 33... Rb2+ {[%clk 0:02:29.6]} 34. Kf3
{[%clk 0:01:35.5]} 34... Rxh2 {[%clk 0:02:26.8]} 35. a4 {[%clk 0:01:34.5]} 35...
h4 {[%clk 0:02:24]} 36. gxh4 {[%clk 0:01:32.7]} 36... Rxh4 {[%clk 0:02:22.9]}
37. a5 {[%clk 0:01:31]} 37... Rh3+ {[%clk 0:02:21.7]} 38. Kg4 {[%clk 0:01:29.9]}
38... Ra3 {[%clk 0:02:18.2]} 39. a6 {[%clk 0:01:26.1]} 39... Kf6 {[%clk
0:02:12.9]} 40. Ra8 {[%clk 0:01:24.1]} 40... Ra5 {[%clk 0:02:08.4]} 41. a7
{[%clk 0:01:22]} 41... Ke7 {[%clk 0:02:01.8]} 42. Kh4 {[%clk 0:01:14.2]} 42...
Ra4 {[%clk 0:02:00]} 1/2-1/2